bitfinex/quotes_SOLUSD_20250321
["timestamp","ask_amount","ask_price","bid_price","bid_amount"]
[1742539334730,14.59922472,128.41,128.39,7.7884]
[1742539335031,0.03,128.42,128.38,6.703]
[1742539335032,14.59922472,128.4,128.38,14.4922]
[1742539335234,14.59922472,128.39,128.38,14.4922]
[1742539335410,14.59922472,128.4,128.38,14.4922]
[1742539336026,14.59922472,128.39,128.38,6.703]
[1742539336427,14.59922472,128.39,128.38,0.063]
[1742539338833,22.38792472,128.39,128.38,0.063]
[1742539340135,81.06914674,128.39,128.38,0.063]
[1742539340340,99.7187956,128.39,128.38,0.063]
[1742539340515,20.0,128.37,128.36,0.063]
[1742539340721,34.59922472,128.37,128.36,0.063]
[1742539342835,42.38912472,128.37,128.36,0.063]
[1742539343234,34.59922472,128.37,128.36,0.063]
[1742539344452,42.38912472,128.37,128.36,0.063]
[1742539348845,34.59922472,128.37,128.36,0.063]
[1742539349940,42.38912472,128.37,128.36,0.063]
[1742539350932,61.32309672,128.37,128.36,0.063]
[1742539352736,34.59922472,128.37,128.36,0.063]
[1742539353048,42.38912472,128.37,128.36,0.063]
[1742539353552,34.59922472,128.37,128.36,0.063]
[1742539354638,14.59922472,128.37,128.36,0.063]
[1742539355151,22.38912472,128.37,128.36,0.063]
[1742539356945,14.59922472,128.37,128.36,0.063]
[1742539357254,34.59922472,128.37,128.36,0.063]
[1742539361250,42.38912472,128.37,128.36,0.063]
[1742539369973,61.32309672,128.37,128.36,0.063]
[1742539370276,18.933972,128.36,128.35,0.063]
[1742539370450,37.4505182,128.36,128.35,0.063]
[1742539370649,37.4505182,128.36,128.34,0.063]
[1742539370849,33.53319672,128.35,128.34,0.063]
[1742539372248,41.32429672,128.35,128.34,0.063]
[1742539374448,14.59922472,128.35,128.34,0.063]
[1742539386962,22.39032472,128.35,128.34,0.063]
[1742539387858,14.59922472,128.35,128.34,0.063]
[1742539389343,22.39032472,128.35,128.34,0.063]
[1742539390351,14.59922472,128.36,128.34,0.063]
[1742539391947,0.03,128.35,128.34,0.063]
[1742539392790,14.62922472,128.35,128.34,0.063]
[1742539393471,0.03,128.35,128.34,0.063]
[1742539397972,14.62922472,128.35,128.34,0.063]
[1742539398591,0.03,128.35,128.34,0.063]
[1742539402463,14.62922472,128.35,128.34,0.063]
[1742539403474,0.03,128.35,128.34,0.063]
[1742539403678,14.62922472,128.35,128.34,0.063]
[1742539405771,0.03,128.35,128.34,0.063]
[1742539427798,14.62922472,128.35,128.34,0.063]
[1742539427983,34.62922472,128.35,128.34,0.063]
[1742539429994,42.42032472,128.35,128.34,0.063]
[1742539431181,61.35429672,128.35,128.34,0.063]
[1742539437103,20.0,128.32,128.31,0.063]
[1742539437307,34.59922472,128.32,128.31,0.063]
[1742539438189,42.39222472,128.32,128.31,0.063]
[1742539439710,20.0,128.32,128.31,0.063]
[1742539440804,34.59922472,128.32,128.31,0.063]
[1742539440994,42.39222472,128.32,128.31,0.063]
[1742539441508,34.59922472,128.32,128.31,0.063]
[1742539442604,42.39222472,128.32,128.31,0.063]
[1742539454711,61.04187358,128.32,128.31,0.063]
[1742539459513,61.32619672,128.32,128.31,0.063]
[1742539459709,0.28432314,128.31,128.28,0.063]
[1742539459909,14.59922472,128.29,128.28,0.063]
[1742539460106,33.24887358,128.29,128.28,0.063]
[1742539461933,41.04367358,128.29,128.28,0.063]
[1742539464236,41.32799672,128.29,128.28,0.063]
[1742539464436,18.64964886,128.28,128.27,0.063]
[1742539464741,33.24887358,128.28,128.27,0.063]
[1742539465912,41.32859672,128.28,128.27,0.063]
[1742539473040,41.04427358,128.28,128.27,0.063]
[1742539473242,33.24887358,128.28,128.27,0.063]
[1742539474941,14.59922472,128.28,128.27,0.063]
[1742539477247,14.59922472,128.29,128.27,0.063]
[1742539477443,14.59922472,128.3,128.27,0.063]
[1742539477841,14.59922472,128.29,128.27,0.063]
[1742539478234,14.59922472,128.28,128.27,0.063]
[1742539480365,22.39462472,128.28,128.27,0.063]
[1742539484256,22.42462472,128.28,128.27,0.063]
[1742539487554,41.35859672,128.28,128.27,0.063]
[1742539488137,22.42462472,128.28,128.27,0.063]
[1742539502561,14.62922472,128.28,128.27,0.063]
[1742539506173,0.03,128.28,128.27,0.063]
[1742539506367,0.03,128.28,128.27,6.703]
[1742539506772,0.03,128.28,128.27,21.30222472]
[1742539506953,0.03,128.28,128.27,21.58654786]
[1742539507160,0.03,128.28,128.27,29.38254786]
[1742539507356,14.59922472,128.33,128.27,49.38254786]
[1742539507564,14.62922472,128.34,128.3,14.88354786]
[1742539507764,14.62922472,128.34,128.31,6.64]
[1742539508069,0.03,128.34,128.31,6.64]
[1742539509272,0.03,128.34,128.32,7.793]
[1742539510453,0.03,128.34,128.31,14.4333]
[1742539512766,0.03,128.34,128.31,29.03252472]
[1742539514053,0.03,128.34,128.32,0.28432314]
[1742539514257,0.03,128.34,128.33,1.6651]
[1742539516277,0.03,128.34,128.31,6.64]
[1742539516777,14.62922472,128.34,128.31,14.4335]
[1742539516963,14.62922472,128.34,128.31,14.4336]
[1742539517162,0.03,128.34,128.31,29.03282472]
[1742539517668,0.03,128.34,128.32,14.88354786]
[1742539518476,0.03,128.34,128.33,7.7924]
[1742539518689,0.03,128.34,128.33,8.07672314]
[1742539519194,0.03,128.34,128.33,0.28432314]
[1742539520483,14.62922472,128.34,128.31,87.81]
[1742539520677,14.59922472,128.33,128.31,87.81]
[1742539521591,14.59922472,128.33,128.31,6.64]
[1742539522505,7.7925,128.33,128.31,6.64]
[1742539522790,22.39172472,128.33,128.31,6.64]
[1742539523583,22.42122472,128.34,128.31,6.64]
[1742539524295,14.59922472,128.33,128.31,6.64]
[1742539524586,14.62922472,128.34,128.31,6.64]
[1742539524766,14.59922472,128.33,128.31,6.64]
[1742539526263,22.39162472,128.33,128.31,6.64]
[1742539526886,14.59922472,128.32,128.28,0.34732314]
[1742539527091,14.59922472,128.31,128.29,6.64]
[1742539528968,14.59922472,128.32,128.29,6.64]
[1742539529991,14.59922472,128.32,128.29,14.4347]
[1742539530402,14.59922472,128.32,128.29,6.64]
[1742539531567,22.39222472,128.32,128.29,6.64]
[1742539531775,14.59922472,128.31,128.29,6.64]
[1742539533796,22.39282472,128.31,128.29,6.64]
[1742539534696,14.59922472,128.31,128.29,6.64]
[1742539535413,22.39282472,128.31,128.29,6.64]
[1742539535593,22.39282472,128.31,128.28,6.703]
[1742539536794,14.59922472,128.31,128.28,6.703]
[1742539539373,22.39302472,128.31,128.28,6.703]
[1742539539577,14.59922472,128.3,128.28,6.703]
[1742539539793,14.59922472,128.29,128.28,0.063]
[1742539541799,14.59922472,128.3,128.28,0.063]
[1742539541977,14.59922472,128.29,128.28,0.063]
[1742539543098,14.59922472,128.3,128.28,0.063]
[1742539543306,7.7932,128.32,128.28,0.063]
[1742539543509,14.59922472,128.31,128.28,0.063]
[1742539543801,14.59922472,128.32,128.28,0.063]
[1742539543993,14.59922472,128.32,128.28,14.66222472]
[1742539544304,7.7926,128.33,128.28,14.66222472]
[1742539544305,14.59922472,128.33,128.28,14.66222472]
[1742539544605,14.59922472,128.33,128.29,14.88354786]
[1742539545417,14.59922472,128.32,128.29,0.28432314]
[1742539545599,14.59922472,128.31,128.29,8.07882314]
[1742539545781,14.59922472,128.31,128.28,7.8581]
[1742539545987,14.59922472,128.31,128.28,0.063]
[1742539546207,14.59922472,128.31,128.28,7.8583]
[1742539547301,14.59922472,128.32,128.28,7.8583]
[1742539547497,14.59922472,128.33,128.28,22.45752472]
[1742539547807,14.59922472,128.33,128.29,0.28432314]
[1742539549305,14.59922472,128.33,128.29,8.07852314]
[1742539549803,22.39172472,128.33,128.29,8.07852314]
[1742539550196,14.59922472,128.32,128.29,8.07852314]
[1742539551705,14.59922472,128.33,128.29,8.07852314]
[1742539553116,14.59922472,128.32,128.29,8.07852314]
[1742539555526,14.59922472,128.31,128.29,7.7942]
[1742539556022,14.59922472,128.32,128.29,7.7942]
[1742539556199,14.62922472,128.32,128.29,7.7942]
[1742539556619,0.03,128.32,128.29,0.28432314]
[1742539558628,14.62922472,128.32,128.29,7.7945]
[1742539558799,14.62922472,128.32,128.28,8.14242314]
[1742539559301,14.59922472,128.31,128.28,8.14242314]
[1742539560333,14.62922472,128.32,128.28,8.14242314]
[1742539560628,14.59922472,128.31,128.28,0.063]
[1742539560922,14.59922472,128.3,128.28,0.063]
[1742539561802,14.59922472,128.31,128.28,0.063]
[1742539562003,14.59922472,128.3,128.28,6.703]
[1742539562416,14.59922472,128.29,128.28,0.063]
[1742539563323,14.59922472,128.3,128.28,0.063]
[1742539568104,22.39362472,128.3,128.28,0.063]
[1742539568319,14.59922472,128.29,128.28,0.063]
[1742539569623,22.39402472,128.29,128.28,0.063]
[1742539573149,14.59922472,128.29,128.28,0.063]
[1742539576120,22.39402472,128.29,128.28,0.063]
[1742539585229,14.59922472,128.29,128.28,0.063]
[1742539586242,22.39402472,128.29,128.28,0.063]
[1742539591840,22.42402472,128.29,128.28,0.063]
[1742539596435,20.0,128.27,128.26,0.063]
[1742539596640,34.59922472,128.27,128.26,0.063]
[1742539598356,34.59922472,128.28,128.26,0.063]
[1742539598653,34.59922472,128.28,128.26,6.703]
[1742539599452,34.59922472,128.28,128.26,14.4995]
[1742539599951,14.59922472,128.28,128.26,14.4995]
[1742539600453,14.62922472,128.29,128.26,14.4995]
[1742539600848,14.59922472,128.28,128.26,14.4995]
[1742539601251,14.62922472,128.29,128.26,14.4995]
[1742539601555,14.59922472,128.28,128.26,14.4995]
[1742539605134,14.59922472,128.28,128.26,6.703]
[1742539605340,14.59922472,128.27,128.26,6.703]
[1742539606250,14.59922472,128.28,128.26,6.703]
[1742539606842,14.59922472,128.27,128.26,6.703]
[1742539607855,14.59922472,128.27,128.26,0.063]
[1742539610361,14.59922472,128.28,128.26,0.063]
[1742539616967,14.62922472,128.29,128.26,0.063]
[1742539617987,14.59922472,128.28,128.26,0.063]
[1742539618461,14.59922472,128.27,128.26,0.063]
[1742539618964,22.39522472,128.27,128.26,0.063]
[1742539619778,22.39522472,128.27,128.25,0.063]
[1742539619979,14.59922472,128.26,128.25,0.063]
[1742539620280,18.54350341,128.26,128.25,0.063]
[1742539620781,20.78276059,128.26,128.25,0.063]
[1742539621273,28.57936059,128.26,128.25,0.063]
[1742539622765,32.48434185,128.26,128.25,0.063]
[1742539624078,51.41831385,128.26,128.25,0.063]
[1742539625973,20.0,128.24,128.23,0.063]
[1742539626168,100.7939236,128.24,128.23,0.063]
[1742539626563,119.7278956,128.24,128.22,0.063]
[1742539626767,14.59922472,128.23,128.22,0.063]
[1742539626960,33.53319672,128.23,128.22,0.063]
[1742539628053,41.33159672,128.23,128.22,0.063]
[1742539631657,41.33159672,128.23,128.21,0.063]
[1742539631857,14.59922472,128.22,128.21,0.063]
[1742539632367,20.0,128.2,128.19,0.063]
[1742539632556,34.59922472,128.2,128.19,0.063]
[1742539632757,42.39952472,128.2,128.19,0.063]
[1742539634180,61.33349672,128.2,128.19,0.063]
[1742539637079,61.33349672,128.2,128.18,0.063]
[1742539637265,14.59922472,128.19,128.18,0.063]
[1742539638383,22.40012472,128.19,128.18,0.063]
[1742539638579,41.33409672,128.19,128.18,0.063]
[1742539640523,60.83639672,128.19,128.15,0.063]
[1742539640676,14.59922472,128.16,128.15,0.063]
[1742539641480,33.53319672,128.16,128.15,0.063]
[1742539641791,33.53319672,128.16,128.13,0.063]
[1742539641792,20.0,128.14,128.13,0.063]
[1742539641971,34.59922472,128.14,128.13,0.063]
[1742539642473,42.40312472,128.14,128.13,0.063]
[1742539643074,42.40312472,128.14,128.09,0.063]
[1742539643075,18.933972,128.13,128.09,0.063]
[1742539643286,14.59922472,128.1,128.09,0.063]
[1742539643771,72.9961236,128.1,128.09,0.063]
[1742539644172,33.53319672,128.1,128.09,0.063]
[1742539644382,91.9300956,128.1,128.09,0.063]
[1742539644694,99.7364956,128.1,128.09,0.063]
[1742539649380,14.59922472,128.1,128.09,0.063]
[1742539651486,72.9961236,128.1,128.09,0.063]
[1742539651680,80.8025236,128.1,128.09,0.063]
[1742539652002,20.0,128.07,128.04,1.6631]
[1742539652200,34.59922472,128.06,128.04,9.4731]
[1742539653301,14.59922472,128.05,128.04,9.4731]
[1742539653479,14.59922472,128.05,128.04,1.6631]
[1742539659501,22.40872472,128.05,128.03,0.5550268]
[1742539659681,14.59922472,128.04,128.03,0.5550268]
[1742539662787,22.40922472,128.04,128.03,0.5550268]
[1742539663308,14.59922472,128.04,128.03,0.5550268]
[1742539664692,14.59922472,128.04,128.03,0.6180268]
[1742539667701,22.40922472,128.04,128.03,0.6180268]
[1742539672893,14.59922472,128.04,128.03,0.6180268]
[1742539680715,20.0,128.06,128.03,8.4286268]
[1742539680916,14.59922472,128.05,128.03,8.4286268]
[1742539684017,14.59922472,128.04,128.03,0.6180268]
[1742539684516,14.59922472,128.05,128.03,8.4286268]
[1742539684715,14.59922472,128.04,128.03,8.4286268]
[1742539685098,14.59922472,128.05,128.03,8.4286268]
[1742539686825,14.59922472,128.04,128.03,0.6180268]
[1742539687203,14.59922472,128.04,128.03,8.4286268]
[1742539688729,14.59922472,128.04,128.03,0.6180268]
[1742539690535,14.59922472,128.04,128.03,8.4286268]
[1742539690717,14.59922472,128.05,128.03,8.4286268]
[1742539692233,14.59922472,128.05,128.03,0.6180268]
[1742539692734,14.59922472,128.05,128.03,8.4286268]
[1742539694532,14.59922472,128.04,128.03,0.6180268]
[1742539695338,14.59922472,128.05,128.03,8.4286268]
[1742539699939,14.59922472,128.05,128.03,0.6180268]
[1742539700230,14.59922472,128.04,128.03,0.6180268]
[1742539701018,14.59922472,128.05,128.03,8.4286268]
[1742539701940,14.59922472,128.05,128.03,0.6180268]
[1742539703625,14.59922472,128.04,128.03,0.6180268]
[1742539706440,20.0,128.06,128.03,8.4286268]
[1742539706745,14.59922472,128.05,128.03,8.4286268]
[1742539706928,14.59922472,128.05,128.03,0.6180268]
[1742539708821,14.59922472,128.04,128.03,0.6180268]
[1742539709136,14.59922472,128.05,128.03,0.6180268]
[1742539709835,14.59922472,128.04,128.03,0.6180268]
[1742539713224,7.8097,128.05,128.03,0.6180268]
[1742539713424,14.59922472,128.04,128.03,0.6180268]
[1742539721227,14.59922472,128.05,128.03,0.6180268]
[1742539721436,20.0,128.06,128.03,8.4285268]
[1742539721638,34.59922472,128.06,128.03,8.4285268]
[1742539722958,14.59922472,128.07,128.03,8.4285268]
[1742539723158,14.59922472,128.06,128.03,8.4285268]
[1742539724857,14.59922472,128.07,128.03,8.4285268]
[1742539725359,14.59922472,128.06,128.03,8.4285268]
[1742539726640,14.59922472,128.05,128.03,8.4285268]
[1742539726831,14.59922472,128.05,128.03,0.6180268]
[1742539727038,14.59922472,128.04,128.03,0.6180268]
[1742539730242,14.59922472,128.05,128.03,0.6180268]
[1742539732060,14.59922472,128.05,128.03,8.4284268]
[1742539732254,14.59922472,128.06,128.03,8.4284268]
[1742539732658,14.59922472,128.05,128.03,8.4284268]
[1742539733862,14.59922472,128.06,128.03,8.4284268]
[1742539734263,14.59922472,128.05,128.03,0.6180268]
[1742539736668,14.59922472,128.05,128.03,8.4286268]
[1742539737265,14.59922472,128.05,128.03,0.6180268]
[1742539738365,14.59922472,128.05,128.03,8.4286268]
[1742539738975,14.59922472,128.06,128.03,8.4286268]
[1742539741968,0.03,128.09,128.04,8.45582314]
[1742539742162,0.03,128.1,128.09,0.28432314]
[1742539742368,0.03,128.1,128.09,42.10201986]
[1742539742551,0.03,128.1,128.09,48.68901986]
[1742539742954,0.03,128.1,128.09,29.75504786]
[1742539744283,0.03,128.1,128.09,37.56204786]
[1742539746987,0.03,128.1,128.09,30.97504786]
[1742539747171,0.03,128.1,128.09,24.27504786]
[1742539747372,0.03,128.1,128.09,16.0715]
[1742539747576,0.03,128.1,128.09,6.68]
[1742539747767,0.03,128.1,128.07,7.8079]
[1742539747970,0.03,128.1,128.07,14.4879]
[1742539748269,14.59922472,128.09,128.07,6.68]
[1742539749173,14.59922472,128.08,128.07,6.68]
[1742539749377,14.59922472,128.08,128.04,14.4898]
[1742539749576,14.59922472,128.07,128.04,14.4898]
[1742539750177,14.59922472,128.07,128.04,6.68]
[1742539750376,14.59922472,128.07,128.03,7.3180268]
[1742539750775,14.59922472,128.07,128.03,15.1284268]
[1742539751382,14.59922472,128.06,128.03,7.3180268]
[1742539751901,14.59922472,128.06,128.03,0.6180268]
[1742539752401,14.59922472,128.07,128.03,0.6180268]
[1742539752705,0.03,128.1,128.06,16.10752472]
[1742539752877,0.03,128.1,128.08,14.59922472]
[1742539753073,0.03,128.1,128.07,21.49922472]
[1742539753574,0.03,128.1,128.07,6.9]
[1742539754476,0.03,128.1,128.08,7.8076]
[1742539755389,0.03,128.1,128.09,14.88354786]
[1742539756270,0.03,128.1,128.09,42.69054786]
[1742539761295,0.03,128.1,128.09,8.09132314]
[1742539761491,0.03,128.1,128.09,7.807]
[1742539761687,0.03,128.1,128.08,14.7073]
[1742539763679,0.03,128.1,128.08,29.30652472]
[1742539764900,0.03,128.1,128.08,14.7073]
[1742539766988,0.03,128.1,128.08,7.8073]
[1742539767188,0.03,128.1,128.08,14.6873]
[1742539770316,0.03,128.1,128.08,6.88]
[1742539770502,0.03,128.1,128.08,14.6875]
[1742539771397,0.03,128.1,128.08,29.28672472]
[1742539772304,0.03,128.1,128.08,14.6875]
[1742539772702,0.03,128.1,128.08,14.7505]
[1742539773081,0.03,128.1,128.08,29.34972472]
[1742539773282,0.03,128.1,128.09,14.88354786]
[1742539773481,0.03,128.1,128.09,34.88354786]
[1742539773688,0.03,128.1,128.09,20.28432314]
[1742539773981,0.03,128.1,128.09,34.88354786]
[1742539774175,0.03,128.1,128.09,42.69054786]
[1742539775585,0.03,128.1,128.09,7.807]
[1742539775782,0.03,128.1,128.09,22.40622472]
[1742539776200,0.03,128.1,128.09,22.69054786]
[1742539781008,0.03,128.1,128.09,42.69054786]
[1742539782303,0.03,128.1,128.09,61.62451986]
[1742539782510,0.03,128.1,128.09,142.79451986]
[1742539782703,22.26572472,128.18,128.13,0.28432314]
[1742539782904,22.26572472,128.18,128.13,21.72354786]
[1742539783606,14.59922472,128.17,128.13,7.12432314]
[1742539784512,14.59922472,128.17,128.13,14.92832314]
[1742539784810,14.59922472,128.16,128.13,14.92832314]
[1742539785716,14.59922472,128.17,128.13,14.92832314]
[1742539787612,22.40132472,128.17,128.13,14.92832314]
[1742539787814,22.40132472,128.17,128.13,6.84]
[1742539788198,14.59922472,128.16,128.13,6.84]
[1742539788713,22.40132472,128.17,128.13,6.84]
[1742539790320,22.40132472,128.17,128.13,14.6444]
[1742539791014,22.40132472,128.17,128.13,6.84]
[1742539791405,14.59922472,128.16,128.13,6.84]
[1742539791999,22.40132472,128.17,128.13,6.84]
[1742539792793,7.8021,128.17,128.13,6.84]
[1742539794216,7.8021,128.17,128.12,7.8048]
[1742539794395,14.59922472,128.15,128.11,6.8]
[1742539795412,22.40252472,128.15,128.11,6.8]
[1742539796008,14.59922472,128.15,128.11,6.8]
[1742539797321,14.59922472,128.15,128.12,7.8051]
[1742539798314,14.59922472,128.15,128.11,14.6055]
[1742539799326,22.40252472,128.15,128.11,14.6055]
[1742539799523,14.59922472,128.16,128.11,14.6055]
[1742539800725,7.8033,128.15,128.11,14.6055]
[1742539800925,22.40252472,128.15,128.1,0.063]
[1742539801111,14.59922472,128.12,128.1,0.063]
[1742539801427,14.59922472,128.11,128.1,0.063]
[1742539802829,22.40492472,128.11,128.1,0.063]
[1742539803823,14.59922472,128.12,128.1,0.063]
[1742539804029,22.40392472,128.13,128.1,0.063]
[1742539804232,14.59922472,128.15,128.11,6.82]
[1742539804424,14.59922472,128.16,128.11,21.41922472]
[1742539804812,14.59922472,128.16,128.12,7.8051]
[1742539808943,14.62922472,128.17,128.12,22.40432472]
[1742539809243,0.03,128.17,128.13,14.88354786]
[1742539809532,0.03,128.16,128.13,14.88354786]
[1742539810029,14.62922472,128.16,128.12,7.8051]
[1742539810243,14.59922472,128.15,128.11,16.31736157]
[1742539810441,14.59922472,128.14,128.11,16.31736157]
[1742539810734,14.62922472,128.16,128.11,30.91658629]
[1742539812428,14.59922472,128.15,128.11,16.31736157]
[1742539813436,14.62922472,128.16,128.11,30.91658629]
[1742539813933,14.59922472,128.15,128.11,16.31736157]
[1742539815515,14.62922472,128.16,128.11,50.43098629]
[1742539816916,14.59922472,128.15,128.11,35.83176157]
[1742539817317,14.62922472,128.16,128.11,50.43098629]
[1742539821650,22.43202472,128.16,128.11,30.91658629]
[1742539821863,22.43202472,128.16,128.11,16.31736157]
[1742539822147,14.62922472,128.16,128.11,16.31736157]
[1742539822323,22.43202472,128.16,128.11,16.31736157]
[1742539822519,14.59922472,128.15,128.11,16.31736157]
[1742539822744,22.43202472,128.16,128.11,16.31736157]
[1742539823153,14.62922472,128.16,128.11,16.31736157]
[1742539823331,14.62922472,128.16,128.11,30.91658629]
[1742539823536,0.03,128.16,128.11,30.91658629]
[1742539823851,0.03,128.16,128.11,50.43098629]
[1742539825361,14.62922472,128.16,128.11,50.43098629]
[1742539826373,0.03,128.16,128.11,50.43098629]
[1742539826865,14.62922472,128.16,128.11,50.43098629]
[1742539829368,14.62922472,128.16,128.11,30.91658629]
[1742539829675,14.59922472,128.15,128.11,16.31736157]
[1742539830263,14.62922472,128.16,128.11,16.31736157]
[1742539830464,22.43202472,128.16,128.11,16.31736157]
[1742539831977,14.59922472,128.15,128.11,16.1752]
[1742539832188,14.59922472,128.14,128.11,8.3698]
[1742539832679,22.40272472,128.15,128.11,8.3698]
[1742539834285,22.40312472,128.14,128.11,8.3698]
[1742539834775,14.59922472,128.12,128.1,0.063]
[1742539834988,14.59922472,128.12,128.1,6.883]
[1742539835193,14.59922472,128.13,128.1,6.883]
[1742539836678,22.40372472,128.13,128.1,0.063]
[1742539836980,14.59922472,128.11,128.1,0.063]
[1742539837185,14.59922472,128.12,128.1,0.063]
[1742539837881,22.40452472,128.12,128.1,0.063]
[1742539838078,14.59922472,128.11,128.1,0.063]
[1742539838677,14.59922472,128.11,128.08,6.82]
[1742539839875,14.59922472,128.1,128.06,14.16566157]
[1742539840183,14.59922472,128.1,128.07,6.82]
[1742539840385,14.59922472,128.11,128.07,6.82]
[1742539842181,22.40502472,128.11,128.07,6.82]
[1742539842387,14.59922472,128.1,128.06,6.215]
[1742539842567,14.59922472,128.1,128.07,6.8]
[1742539843985,22.40572472,128.1,128.06,7.8085]
[1742539844174,22.40572472,128.1,128.07,6.8]
[1742539844884,14.59922472,128.1,128.07,6.8]
[1742539846365,14.59922472,128.09,128.07,6.8]
[1742539846783,14.59922472,128.1,128.07,6.8]
[1742539848081,22.40562472,128.1,128.07,6.8]
[1742539848276,14.59922472,128.09,128.07,6.8]
[1742539848485,14.59922472,128.08,128.06,0.063]
[1742539848778,14.59922472,128.07,128.06,0.063]
[1742539849462,22.40742472,128.07,128.06,0.063]
[1742539851490,14.59922472,128.07,128.06,0.063]
[1742539851786,22.40742472,128.07,128.06,0.063]
[1742539854090,14.59922472,128.07,128.06,0.063]
[1742539855672,22.40742472,128.07,128.06,0.063]
[1742539860482,14.59922472,128.07,128.06,0.063]
[1742539861491,14.59922472,128.08,128.06,0.063]
[1742539862792,14.59922472,128.07,128.06,0.063]
[1742539865723,14.62922472,128.1,128.06,6.863]
[1742539866079,14.59922472,128.08,128.06,6.863]
[1742539867500,14.59922472,128.07,128.06,6.863]
[1742539868601,14.59922472,128.08,128.06,6.863]
[1742539869186,14.59922472,128.08,128.06,14.6717]
[1742539869386,7.8366,128.1,128.06,14.6717]
[1742539869387,14.62922472,128.1,128.06,14.6717]
[1742539870006,14.59922472,128.09,128.06,6.863]
[1742539870308,14.59922472,128.08,128.06,6.863]
[1742539872400,14.59922472,128.09,128.06,6.863]
[1742539872614,14.59922472,128.08,128.06,6.863]
[1742539877306,14.59922472,128.07,128.06,6.863]
[1742539877618,14.59922472,128.07,128.06,0.063]
[1742539880902,14.59922472,128.08,128.06,0.063]
[1742539881709,14.62922472,128.09,128.06,0.063]
[1742539883032,0.03,128.09,128.06,0.063]
[1742539883501,14.62922472,128.09,128.06,0.063]
[1742539883902,0.03,128.09,128.06,0.063]
[1742539884325,14.62922472,128.09,128.06,0.063]
[1742539897729,0.03,128.09,128.06,0.063]
[1742539900032,14.62922472,128.09,128.06,0.063]
[1742539904433,14.59922472,128.08,128.06,0.063]
[1742539904933,14.59922472,128.07,128.06,0.063]
[1742539907142,22.40742472,128.07,128.06,0.063]
[1742539907642,14.59922472,128.07,128.06,0.063]
[1742539910130,14.62922472,128.09,128.06,0.063]
[1742539917352,14.62922472,128.09,128.06,7.8718]
[1742539917550,0.03,128.09,128.06,7.8718]
[1742539920257,0.03,128.09,128.06,22.47102472]
[1742539920451,0.03,128.09,128.07,6.74]
[1742539922261,0.03,128.09,128.07,14.5479]
[1742539923644,14.62922472,128.09,128.06,0.063]
[1742539923837,14.59922472,128.08,128.06,0.063]
[1742539924142,14.62922472,128.09,128.06,0.063]
[1742539924338,14.62922472,128.09,128.06,7.8717]
[1742539924537,14.62922472,128.09,128.06,0.063]
[1742539930339,0.03,128.09,128.06,0.063]
[1742539931242,14.62922472,128.09,128.06,0.063]
[1742539934151,0.03,128.09,128.06,0.063]
[1742539934856,0.03,128.09,128.06,14.66222472]
[1742539935235,0.03,128.09,128.06,21.02792472]
[1742539936063,0.03,128.09,128.07,7.8082]
[1742539936667,0.03,128.09,128.06,14.2373]
[1742539936966,0.03,128.09,128.06,0.063]
[1742539937486,14.62922472,128.09,128.06,0.063]
[1742539937784,14.62922472,128.09,128.06,7.8718]
[1742539938184,0.03,128.09,128.06,7.8718]
[1742539940799,14.59922472,128.08,128.06,0.063]
[1742539944694,14.62922472,128.09,128.06,0.063]
[1742539946968,22.43622472,128.09,128.06,0.063]
[1742539947375,14.59922472,128.08,128.06,0.063]
[1742539948795,14.62922472,128.09,128.06,0.063]
[1742539951905,14.59922472,128.07,128.06,0.063]
[1742539954486,22.40742472,128.07,128.06,0.063]
[1742539954690,14.59922472,128.07,128.06,0.063]
[1742539957681,22.40712472,128.08,128.06,0.063]
[1742539957874,14.62922472,128.09,128.06,0.063]